[Event "Austrian Championship 2022"]
[Site "Vienna"]
[Date "2022.08.19"]
[Round "9.1"]
[White "Steiner, Adam"]
[Black "Kersten, Julian"]
[Result "1-0"]
[ECO "B13"]
[WhiteElo "2226"]
[BlackElo "1999"]
[Annotator "TA"]
[PlyCount "55"]
[EventDate "2022.08.12"]
[EventType "swiss"]
[EventCountry "AUT"]
[SourceTitle "playchess.com"]
[Source "ChessBase"]
[SourceQuality "1"]
[TimeControl "40/5400+30:1800+30"]

{[%evp 9,55,0,13,10,14,0,9,0,0,-2,0,0,0,0,0,-8,0,0,0,0,37,24,43,51,51,6,87,47,37,33,106,105,146,183,298,281,294,317,450,468,466,458,480,498,624,630,1111,1134]} 1. d4 {[%emt 0:00:02]} d5 {[%emt 0:00:23]} 2. Bf4 {[%emt 0:00:05]} c5 {[%emt 0:00:13]} 3. e3 {[%emt 0:00:09]} cxd4 {[%emt 0:00:09]} 4. exd4 {[%emt 0:00:07]} Nc6 {[%emt 0:00:05]} 5. c3 {[%emt 0:00:40]} f6 {[%emt 0:00:09]} 6. Nf3 {[%emt 0:08:09] Inhibits e5. B13: Caro-Kann: Exchange Variation and Panov-Botvinnik Attack.} g5 {[%emt 0:00:12]} 7. Bg3 {[%emt 0:08:08]} ({Much weaker is} 7. Nxg5 fxg5 8. Qh5+ Kd7 9. Bxg5 Qe8 $17) 7... Bf5 {[%emt 0:05:02]} 8. Na3 {[%emt 0:07:47][%cal Bb1a3,Ba3c2,Bc2e3][%mdl 32] [#] The position is equal.} h5 $146 {[%emt 0:03:37] [#] ...h4 is the strong threat.} ({Predecessor:} 8... e6 9. Nc2 h5 10. h4 g4 11. Ng1 Qd7 12. Ne3 Bg6 13. Bd3 Nge7 14. Bxg6+ Nxg6 {0-1 (38) Ivanovic,M (2247)-Mehmed,E (2165) Paracin 2020}) 9. h3 {[%emt 0:10:57]} e6 {[%emt 0:03:36]} 10. Nc2 {[%emt 0:02:47]} Bd6 {[%emt 0:02:33]} 11. Bxd6 {[%emt 0:06:05]} Qxd6 {[%emt 0:00:02]} 12. Ne3 {[%emt 0:00:10]} Be4 {[%emt 0:06:09]} 13. Bd3 {[%emt 0:00:11]} Bxd3 {[%emt 0:02:49]} 14. Qxd3 {[%emt 0:00:03]} Kf7 {[%emt 0:00:16]} 15. O-O-O {[%emt 0:01:20]} Nge7 {[%emt 0:05:10]} 16. Kb1 {[%emt 0:00:54]} Rac8 {[%emt 0:12:26]} 17. Ne1 {[%emt 0:03:38]} a6 {[%emt 0:14:55]} (17... Ng6 $11) 18. Qd2 {[%emt 0:08:11]} h4 {[%emt 0:09:46]} 19. Nd3 {[%emt 0:02:37]} b6 {[%emt 0:02:58]} ({Black should try} 19... Ng6 $14) 20. Ng4 $16 {[%emt 0:11:45]} Nf5 {[%emt 0:03:29]} 21. Rhf1 {[%emt 0:06:22]} Qc7 {[%emt 0:05:58]} (21... Kg7 $142 22. f4 Rh5) 22. f4 $18 {[%emt 0:03:39][%cal Bf2f4,Bf4g5][%mdl 32]} Ng3 {[%emt 0:03:14]} 23. fxg5 {[%emt 0:00:07]} Nxf1 {[%emt 0:00:23]} (23... f5 {was called for.} 24. Qe3 Ne4) 24. Rxf1 {[%emt 0:00:17] White is clearly winning.} f5 {[%emt 0:01:06]} 25. Qe2 {[%emt 0:06:41]} Qe7 {[%emt 0:02:01]} 26. Nf4 {[%emt 0:02:18]} b5 {[%emt 0:07:47]} 27. Nh6+ {[%emt 0:01:51] Pair of Knights!} Ke8 {[%emt 0:01:40]} 28. Ng6 {[%emt 0:00:52] Weighted Error Value: White=0.06 (flawless) /Black=0.36} 1-0

[Event "Austrian Championship 2022"]
[Site "Vienna"]
[Date "2022.08.19"]
[Round "9.2"]
[White "Stanec, Nikolaus"]
[Black "Diermair, Andreas"]
[Result "1/2-1/2"]
[ECO "C68"]
[WhiteElo "2460"]
[BlackElo "2452"]
[Annotator "TA"]
[PlyCount "23"]
[EventDate "2022.08.12"]
[EventType "swiss"]
[EventCountry "AUT"]
[SourceTitle "playchess.com"]
[Source "ChessBase"]
[SourceQuality "1"]
[TimeControl "40/5400+30:1800+30"]

{[%evp 22,23,0,0]} 1. e4 {[%emt 0:00:02]} e5 {[%emt 0:00:09]} 2. Nf3 {[%emt 0:00:08]} Nc6 {[%emt 0:00:03]} 3. Bb5 {[%emt 0:00:08]} a6 {[%emt 0:00:09]} 4. Bxc6 {[%emt 0:00:27]} dxc6 {[%emt 0:00:05]} 5. O-O {[%emt 0:00:06]} Bg4 {[%emt 0:01:46]} 6. h3 {[%emt 0:00:14]} h5 {[%emt 0:00:34]} 7. c3 {[%emt 0:00:42]} Qd3 {[%emt 0:01:07]} 8. hxg4 {[%emt 0:00:28]} hxg4 {[%emt 0:00:04]} 9. Nxe5 {[%emt 0:00:10]} Bd6 {[%emt 0:00:06]} 10. Nxd3 {[%emt 0:00:07]} Bh2+ {[%emt 0:00:02]} 11. Kh1 {[%emt 0:00:05] [#]} Bg3+ $146 {[%emt 0:00:02]} ({Predecessor:} 11... Bf4+) 12. Kg1 {[%emt 0:00:05]} 1/2-1/2

[Event "Austrian Championship 2022"]
[Site "Vienna"]
[Date "2022.08.19"]
[Round "9.2"]
[White "Wiedermann, Daniel"]
[Black "Stadlinger, Matthias"]
[Result "1/2-1/2"]
[ECO "A80"]
[WhiteElo "2053"]
[BlackElo "1975"]
[Annotator "NA RC"]
[PlyCount "82"]
[EventDate "2022.08.12"]
[EventType "swiss"]
[EventCountry "AUT"]
[SourceTitle "playchess.com"]
[Source "ChessBase"]
[SourceQuality "1"]
[TimeControl "40/5400+30:1800+30"]

1. d4 {[%emt 0:00:01]} f5 {[%emt 0:00:05]} 2. Nf3 {[%emt 0:02:19]} Nf6 {[%emt 0:00:18]} 3. h3 {[%emt 0:01:05]} e6 {[%emt 0:04:40]} 4. Bf4 {[%emt 0:00:22]} b6 {[%emt 0:01:33]} 5. e3 {[%emt 0:00:07]} Bb7 {[%emt 0:01:25]} 6. g4 {[%emt 0:00:48]} Ne4 {[%emt 0:24:39]} 7. gxf5 {[%emt 0:08:05]} exf5 {[%emt 0:01:44]} 8. Rg1 {[%emt 0:00:02]} g6 {[%emt 0:11:10]} 9. Bd3 {[%emt 0:02:58]} Be7 {[%emt 0:10:35]} 10. Qe2 {[%emt 0:09:03]} d6 {[%emt 0:03:07]} 11. Nbd2 {[%emt 0:04:25]} Nd7 {[%emt 0:02:48]} 12. Bxe4 {[%emt 0:15:30]} (12. Bc4 $14) 12... fxe4 {[%emt 0:00:34]} 13. Ng5 {[%emt 0:00:05]} Nf6 {[%emt 0:00:17]} 14. Qc4 {[%emt 0:11:57]} Bd5 {[%emt 0:06:07]} 15. Qa4+ {[%emt 0:01:48]} Qd7 {[%emt 0:00:39]} 16. Qxd7+ {[%emt 0:00:17]} Kxd7 {[%emt 0:00:11]} 17. c4 {[%emt 0:00:08]} h6 {[%emt 0:02:08]} 18. cxd5 {[%emt 0:02:07]} hxg5 {[%emt 0:00:05]} 19. Bxg5 {[%emt 0:00:48]} Nxd5 {[%emt 0:00:20]} 20. Bxe7 {[%emt 0:00:09]} Nxe7 {[%emt 0:00:20]} 21. Nxe4 {[%emt 0:01:03]} Rxh3 $11 {[%emt 0:00:07]} 22. Ke2 {[%emt 0:02:15]} Rf8 {[%emt 0:06:40]} 23. Rh1 {[%emt 0:01:01]} Rfh8 {[%emt 0:03:57]} 24. Rxh3 {[%emt 0:02:05]} Rxh3 {[%emt 0:00:04]} 25. Rc1 {[%emt 0:00:11]} Nd5 {[%emt 0:07:19]} 26. Rg1 {[%emt 0:00:53]} Ne7 {[%emt 0:00:26]} 27. Ng5 {[%emt 0:04:13]} Rh2 {[%emt 0:00:49]} 28. e4 {[%emt 0:00:44]} d5 {[%emt 0:01:46]} 29. Nf3 {[%emt 0:01:16]} Rh6 {[%emt 0:05:24]} 30. Ne5+ {[%emt 0:05:34]} Ke6 {[%emt 0:00:09]} 31. Ng4 {[%emt 0:00:03]} Rh3 {[%emt 0:01:42]} 32. f3 {[%emt 0:02:22]} c5 {[%emt 0:00:55]} 33. dxc5 {[%emt 0:00:03]} bxc5 {[%emt 0:00:09]} 34. Nf2 {[%emt 0:06:11]} Rh2 {[%emt 0:00:56]} 35. Rc1 {[%emt 0:08:04]} c4 {[%emt 0:01:50]} 36. Ke3 {[%emt 0:04:05]} Kd6 {[%emt 0:02:24]} 37. Rd1 {[%emt 0:03:17]} Kc5 {[%emt 0:00:25]} 38. f4 {[%emt 0:01:00]} d4+ {[%emt 0:00:30]} 39. Kf3 {[%emt 0:00:03]} c3 {[%emt 0:00:59]} 40. Rc1 {[%emt 0:02:58]} Kc4 {[%emt 0:00:38]} 41. Kg3 {[%emt 0:03:58]} Rh7 {[%emt 0:19:40]} 1/2-1/2

[Event "Austrian Championship 2022"]
[Site "Vienna"]
[Date "2022.08.19"]
[Round "9.3"]
[White "Steindl, Johannes"]
[Black "Menezes, Christoph"]
[Result "1-0"]
[ECO "C65"]
[WhiteElo "2312"]
[BlackElo "2417"]
[Annotator "TA"]
[PlyCount "65"]
[EventDate "2022.08.12"]
[EventType "swiss"]
[EventCountry "AUT"]
[SourceTitle "playchess.com"]
[Source "ChessBase"]
[SourceQuality "1"]
[TimeControl "40/5400+30:1800+30"]

{[%evp 9,65,24,14,13,25,0,0,-8,0,0,7,4,2,-18,0,-60,-46,-141,-110,-137,-122,-91,-103,-129,-127,-137,-93,-71,-84,-113,0,-15,41,44,37,43,64,10,18,22,8,15,229,217,229,231,270,249,277,259,341,321,239,250,741,710,29983,29981]} 1. e4 {[%emt 0:00:24]} e5 {[%emt 0:00:10]} 2. Nf3 {[%emt 0:00:05]} Nc6 {[%emt 0:00:04]} 3. Bb5 {[%emt 0:00:03]} Nf6 {[%emt 0:00:11]} 4. d3 {[%emt 0:02:03]} Bc5 {[%emt 0:00:16]} 5. Bxc6 {[%emt 0:00:04]} dxc6 {[%emt 0:00:03]} 6. O-O {[%emt 0:00:05] C65: Ruy Lopez: Berlin Defence (3...Nf6), unusual lines and 4 0-0 Bc5.} Qe7 {[%emt 0:01:16]} 7. Bg5 {[%emt 0:00:30]} h6 {[%emt 0:01:19]} 8. Bh4 {[%emt 0:02:30] The position is equal.} Bg4 {[%emt 0:02:53]} 9. Nbd2 {[%emt 0:01:31]} g5 {[%emt 0:01:08]} 10. Bg3 {[%emt 0:00:04]} Nd7 {[%emt 0:00:12]} 11. c3 {[%emt 0:07:12] [#]} (11. h3 $5 {[%cal Rh3g4]} Bxf3 12. Nxf3 $11) 11... f6 $146 {[%emt 0:06:23]} ({Predecessor:} 11... h5 12. h3 h4 13. Bh2 Bh5 14. Qb3 O-O-O 15. Qc2 g4 16. hxg4 Bxg4 17. b4 Bd6 {0-1 (35) Wojcicki,M-Kobus,S (1581) Przysiek 2006}) 12. Nc4 {[%emt 0:16:57]} ({White should play} 12. Qc2 $11) 12... h5 $36 {[%emt 0:12:04][%mdl 2048] Black is more active.} 13. h4 {[%emt 0:01:48]} (13. h3 $15 h4 14. Bh2) 13... gxh4 {[%emt 0:00:55]} 14. Bxh4 {[%emt 0:00:17] [#]} O-O-O $1 {[%emt 0:01:08]} 15. b4 {[%emt 0:02:58]} Bd6 {[%emt 0:01:06]} 16. Qa4 {[%emt 0:02:35]} Kb8 {[%emt 0:02:52] Hoping for ...Bxf3.} ({Stronger than} 16... Bxf3 17. gxf3 Qg7+ 18. Kh2 $15) 17. Nfd2 {[%emt 0:02:32]} Be2 {[%emt 0:03:41][%csl LRd3,LRf1]} (17... b5 $2 18. Qa6 bxc4 19. Nxc4 $18) 18. Rfe1 {[%emt 0:02:11]} Bxd3 {[%emt 0:00:50] Strongly threatening ...b5.} 19. Ne3 {[%emt 0:00:28]} Ba6 {[%emt 0:11:06]} (19... Qh7 $17 20. f3 Be7) 20. Qb3 $11 {[%emt 0:03:21]} Rhf8 {[%emt 0:02:31]} (20... Rh7 $11) 21. Nf5 {[%emt 0:01:09][%mdl 1024] White has compensation.} Qf7 {[%emt 0:00:23]} 22. c4 $1 {[%emt 0:00:05]} Be7 {[%emt 0:05:12][%cal Od7c5]} 23. b5 {[%emt 0:11:39] White is more active.} ({Better is} 23. Red1 $14) 23... Nc5 {[%emt 0:00:53][%csl LRb3,LRd2]} 24. Qb4 {[%emt 0:00:03]} cxb5 {[%emt 0:06:56]} 25. cxb5 {[%emt 0:00:05]} Bxb5 {[%emt 0:00:58] This move loses the game for Black.} 26. Nxe7 $18 {[%emt 0:00:09][%mdl 64] Deflection} Qxe7 {[%emt 0:01:49]} 27. Nb3 {[%emt 0:00:05][%cal Bd2b3,Bb3c5,Bc5e6][%mdl 32] Inhibits Rd4.} Bc6 {[%emt 0:02:28]} 28. Nxc5 {[%emt 0:02:31] Na6+ is the strong threat.} Ka8 {[%emt 0:00:20]} 29. Rac1 {[%emt 0:00:39][%cal Oc5a6] And now Na6! would win.} Rg8 {[%emt 0:00:19]} 30. Qb3 {[%emt 0:01:05]} Rg4 {[%emt 0:01:10]} 31. g3 {[%emt 0:00:44]} Rdg8 $2 {[%emt 0:00:36] [#]} (31... Rd6 32. Red1 a6) 32. Ne6 $1 {[%emt 0:01:11][%cal Oc1c6] aiming for Rxc6!} Qf7 {[%emt 0:03:39] [#]} (32... Ba4 33. Nxc7+) 33. Rxc6 $1 {[%emt 0:00:49][%mdl 512] Weighted Error Value: White=0.15 (very precise) /Black=0.68} 1-0

[Event "Austrian Championship 2022"]
[Site "Vienna"]
[Date "2022.08.19"]
[Round "9.3"]
[White "Ivanyk, Igor"]
[Black "Hengl, Philip"]
[Result "1/2-1/2"]
[ECO "C67"]
[WhiteElo "2002"]
[BlackElo "1968"]
[Annotator "TA"]
[PlyCount "71"]
[EventDate "2022.08.12"]
[EventType "swiss"]
[EventCountry "AUT"]
[SourceTitle "playchess.com"]
[Source "ChessBase"]
[SourceQuality "1"]
[TimeControl "40/5400+30:1800+30"]

{[%evp 23,71,0,12,0,0,-32,-23,-30,-23,-45,-45,-29,0,0,0,0,0,0,0,0,0,0,0,0,0,0,0,0,0,0,0,0,0,0,0,0,0,-12,0,0,0,0,0,0,0,0,0,0,0,0]} 1. e4 {[%emt 0:00:09]} e5 {[%emt 0:00:15]} 2. Nf3 {[%emt 0:00:04]} Nc6 {[%emt 0:00:04]} 3. Bb5 {[%emt 0:00:05]} Nf6 {[%emt 0:00:06]} 4. O-O {[%emt 0:00:06]} Nxe4 {[%emt 0:00:04]} 5. d4 {[%emt 0:00:07][%cal Bd2d4,Bd4e5][%mdl 32]} Nd6 {[%emt 0:00:12]} 6. dxe5 {[%emt 0:00:15]} Nxb5 {[%emt 0:00:34]} 7. a4 {[%emt 0:00:05]} Nbd4 {[%emt 0:00:05]} 8. Nxd4 {[%emt 0:00:08]} Nxd4 {[%emt 0:00:07]} 9. Qxd4 {[%emt 0:00:05]} d5 {[%emt 0:00:06]} 10. exd6 {[%emt 0:00:51]} Qxd6 {[%emt 0:00:43]} 11. Qe4+ {[%emt 0:04:10]} Qe6 {[%emt 0:00:23]} 12. Qd4 {[%emt 0:00:13]} Qd6 {[%emt 0:00:04]} 13. Qe4+ {[%emt 0:02:04] C67: Ruy Lopez: Berlin Defence: 4 0-0 Nxe4.} Qe6 {[%emt 0:00:07]} 14. Nc3 {[%emt 0:01:24]} Qxe4 {[%emt 0:01:23]} 15. Nxe4 {[%emt 0:00:09] Black has an edge.} Bf5 {[%emt 0:02:07]} 16. Re1 {[%emt 0:01:31] [#] Nf6+ would kill now.} O-O-O {[%emt 0:00:33] ...Bxe4 is the strong threat.} 17. Bf4 {[%emt 0:04:39] [#]} Bxe4 $146 {[%emt 0:10:37]} ({Predecessor:} 17... Be7 18. c3 Rhe8 19. Ng3 Be6 20. Nh5 Bf8 21. Be5 f6 22. Bd4 a5 23. Nf4 Bb3 24. f3 b6 25. Rxe8 Rxe8 {0-1 (61) Jazdanovs,A (2089)-Reimanis,R (2397) Katowice 2021}) 18. Rxe4 {[%emt 0:00:39] The position is equal.} Bd6 {[%emt 0:00:12]} 19. Bxd6 {[%emt 0:12:50]} Rxd6 $11 {[%emt 0:00:07][%mdl 4096] Endgame KRR-KRR} 20. Re7 {[%emt 0:01:31]} Rd7 {[%emt 0:00:10]} 21. Rae1 {[%emt 0:01:17]} Rhd8 {[%emt 0:00:30] [#] Strongly threatening ...Rxe7.} 22. Kf1 {[%emt 0:02:26]} Rxe7 {[%emt 0:00:22]} 23. Rxe7 {[%emt 0:00:08] KR-KR} Rd7 {[%emt 0:00:07]} 24. Re8+ {[%emt 0:04:34]} Rd8 {[%emt 0:00:06]} 25. Rxd8+ {[%emt 0:00:05]} Kxd8 {[%emt 0:00:07] KP-KP} 26. Ke2 {[%emt 0:00:06]} Ke7 {[%emt 0:01:57]} 27. Kd3 {[%emt 0:03:15]} Kd6 {[%emt 0:03:09]} 28. Kc4 {[%emt 0:05:03]} c6 {[%emt 0:09:54]} 29. b4 {[%emt 0:04:15]} b6 {[%emt 0:05:57]} 30. h3 {[%emt 0:05:58]} a6 {[%emt 0:01:15]} 31. g3 {[%emt 0:04:11]} c5 {[%emt 0:01:07]} 32. c3 {[%emt 0:04:45]} Kc6 {[%emt 0:00:08]} 33. b5+ {[%emt 0:15:12]} axb5+ {[%emt 0:00:12]} 34. axb5+ {[%emt 0:00:02]} Kd6 {[%emt 0:00:10]} 35. Kd3 {[%emt 0:00:51]} f5 {[%emt 0:02:39]} 36. f4 {[%emt 0:25:17] Weighted Error Value: White=0.04 (flawless) /Black=0.02 (flawless)} 1/2-1/2

[Event "Austrian Championship 2022"]
[Site "Vienna"]
[Date "2022.08.19"]
[Round "9.4"]
[White "Leisch, Lukas"]
[Black "Morgunov, Marc"]
[Result "1/2-1/2"]
[ECO "E92"]
[WhiteElo "2404"]
[BlackElo "2376"]
[Annotator "TA"]
[PlyCount "34"]
[EventDate "2022.08.12"]
[EventType "swiss"]
[EventCountry "AUT"]
[SourceTitle "playchess.com"]
[Source "ChessBase"]
[SourceQuality "1"]
[TimeControl "40/5400+30:1800+30"]

{[%evp 16,21,39,9,19,22,-19,18]} 1. d4 {[%emt 0:00:03]} Nf6 {[%emt 0:05:21]} 2. c4 {[%emt 0:00:07]} g6 {[%emt 0:00:10]} 3. Nc3 {[%emt 0:00:05]} Bg7 {[%emt 0:00:03]} 4. e4 {[%emt 0:00:06]} d6 {[%emt 0:00:03]} 5. Nf3 {[%emt 0:00:05]} O-O {[%emt 0:00:06]} 6. Be2 {[%emt 0:00:06]} e5 {[%emt 0:00:04]} 7. d5 {[%emt 0:00:04]} a5 {[%emt 0:00:04]} 8. Bg5 {[%emt 0:00:05]} h6 {[%emt 0:00:05]} 9. Bh4 {[%emt 0:00:04]} g5 {[%emt 0:00:02] [#] E92: King's Indian: Classical: 6 Be2 e5: 7 dxe5, 7 Be3 and Petrosian System without 7...Nbd7.} 10. Nxg5 {[%emt 0:00:05]} hxg5 {[%emt 0:00:03]} 11. Bxg5 {[%emt 1:35:10] [#] A rather calm draw.} {Predecessor:} Qe8 $146 12. h4 Nh7 13. Be3 Na6 14. g4 Nc5 15. Qc2 Kh8 16. O-O-O Rg8 17. g5 Bf8 {1-0 (60) Leisch,L (2394)-Kalavannan,K (2324) Tornelo INT 2020} 1/2-1/2

[Event "Austrian Championship 2022"]
[Site "Vienna"]
[Date "2022.08.19"]
[Round "9.4"]
[White "Geroe, Leonhard"]
[Black "Mayrhuber, Tobias"]
[Result "0-1"]
[ECO "C78"]
[WhiteElo "2017"]
[BlackElo "2010"]
[Annotator "TA"]
[PlyCount "38"]
[EventDate "2022.08.12"]
[EventType "swiss"]
[EventCountry "AUT"]
[SourceTitle "playchess.com"]
[Source "ChessBase"]
[SourceQuality "1"]
[TimeControl "40/5400+30:1800+30"]

{[%evp 22,38,0,-23,-22,-8,-2,-20,-18,-25,-9,-22,-29,-122,-132,-920,-916,-29995,-29996]} 1. e4 {[%emt 0:00:02]} e5 {[%emt 0:00:08]} 2. Nf3 {[%emt 0:00:06]} Nc6 {[%emt 0:00:05]} 3. Bb5 {[%emt 0:00:17][%cal Bf1b5,Bb5a4,Ba4b3][%mdl 32]} a6 {[%emt 0:02:18]} 4. Ba4 {[%emt 0:00:07]} Nf6 {[%emt 0:00:08]} 5. O-O {[%emt 0:00:19]} b5 {[%emt 0:00:23]} 6. Bb3 {[%emt 0:00:07]} Bc5 {[%emt 0:00:06]} 7. Nxe5 {[%emt 0:16:25]} Nxe5 {[%emt 0:00:06]} 8. d4 {[%emt 0:00:04]} Bxd4 {[%emt 0:00:06]} 9. Qxd4 {[%emt 0:00:05]} d6 {[%emt 0:00:09]} 10. c3 {[%emt 0:04:19]} O-O {[%emt 0:05:15]} 11. Bg5 {[%emt 0:11:12]} c5 {[%emt 0:06:14]} 12. Qd1 {[%emt 0:08:19]} h6 {[%emt 0:03:04] C78: Ruy Lopez: Archangelsk and Möller Defences.} 13. Bxf6 {[%emt 0:10:07]} Qxf6 {[%emt 0:00:09]} 14. Bd5 {[%emt 0:00:13]} Rb8 {[%emt 0:02:51][%cal Ba8b8,Bb8b4,Bb4d4][%mdl 32] [#] The position is equal.} 15. Na3 $146 {[%emt 0:05:38]} ({Predecessor:} 15. f4 Ng4 16. Qe2 Qh4 17. h3 Nf6 18. Nd2 Nxd5 19. exd5 Bb7 20. Qd3 Rfe8 21. Ne4 {0-1 (42) Goltsev,D (2282)-Pranav,V (2486) Chess.com INT 2021}) 15... b4 {[%emt 0:20:59]} 16. cxb4 {[%emt 0:07:35]} Rxb4 {[%emt 0:01:35]} 17. Rb1 {[%emt 0:00:47] [#]} (17. f4 $1 $11 {keeps the balance.} Ng4 18. Nc4) 17... Rd4 $1 $17 {[%emt 0:09:03] Black is more active.} 18. Qc2 {[%emt 0:07:30][%mdl 8192] [#]} (18. Qe2 $17) 18... Nf3+ $1 $19 {[%emt 0:02:26][%mdl 512]} 19. gxf3 {[%emt 0:05:32]} (19. Kh1 Qf4) 19... Bh3 {[%emt 0:00:43] White got outplayed after the opening.  Weighted Error Value: White=1.40/Black=0.02 (flawless)} 0-1

[Event "Austrian Championship 2022"]
[Site "Vienna"]
[Date "2022.08.19"]
[Round "9.5"]
[White "Shengelia, David"]
[Black "Kristoferitsch, Daniel"]
[Result "1-0"]
[ECO "A01"]
[WhiteElo "2462"]
[BlackElo "2312"]
[Annotator "TA"]
[PlyCount "103"]
[EventDate "2022.08.12"]
[EventType "swiss"]
[EventCountry "AUT"]
[SourceTitle "playchess.com"]
[Source "ChessBase"]
[SourceQuality "1"]
[TimeControl "40/5400+30:1800+30"]

{[%evp 9,103,-26,-18,-34,-45,-65,-58,-91,-86,-113,-98,-94,-31,-129,-117,-118,-117,-127,-114,-117,-103,-170,-174,-222,-185,-212,-201,-189,-216,-217,-180,-151,0,0,0,0,0,0,0,0,0,0,0,0,0,0,0,0,0,0,39,51,95,79,189,53,58,40,54,39,139,83,173,174,162,104,109,27,33,0,43,44,49,6,69,33,113,114,180,179,224,214,417,412,460,442,385,313,445,435,499,319,396,352,630,466]} 1. b3 {[%emt 0:06:40]} Nf6 {[%emt 0:03:45]} 2. Bb2 {[%emt 0:01:34]} g6 {[%emt 0:00:06]} 3. d4 {[%emt 0:02:43]} Bg7 {[%emt 0:00:42]} 4. Nc3 {[%emt 0:00:30]} d5 {[%emt 0:00:22]} 5. Qd2 {[%emt 0:00:39]} O-O {[%emt 0:05:15][%cal Oc7c5]} 6. f3 {[%emt 0:01:45] A01: Nimzowitsch-Larsen Opening.} c5 {[%emt 0:01:36]} 7. e3 {[%emt 0:00:52] [#]} Nc6 $146 {[%emt 0:04:16]} ({Predecessor:} 7... cxd4 8. exd4 Nc6 9. O-O-O a6 10. Kb1 Qd6 11. h4 h5 12. Qf2 b5 13. Bd3 Nb4 {0-1 (36) Jobava,B (2685)-Kelires,A (2523) Batumi 2018}) 8. O-O-O {[%emt 0:04:26] Black is slightly better.} Bh6 $1 {[%emt 0:01:58]} 9. Nce2 {[%emt 0:13:06]} cxd4 {[%emt 0:15:03]} 10. Nxd4 {[%emt 0:00:09]} Re8 {[%emt 0:00:04]} (10... e5 $17 11. Nxc6 bxc6 12. Bxe5 Re8) 11. Kb1 {[%emt 0:13:32]} (11. Nxc6 $15 bxc6 12. g4) 11... e5 {[%emt 0:00:51]} 12. Nxc6 {[%emt 0:00:09]} bxc6 {[%emt 0:00:07]} 13. Qe1 {[%emt 0:01:37]} a5 {[%emt 0:03:31] White must now prevent ...a4.} 14. h4 {[%emt 0:03:03][%cal Oh4h5]} a4 {[%emt 0:05:39]} 15. g4 {[%emt 0:05:38]} (15. h5 $17 {was called for.} Bg7 16. hxg6 hxg6 17. Ne2) 15... Bg7 $19 {[%emt 0:00:50]} 16. h5 {[%emt 0:05:17]} axb3 {[%emt 0:00:33]} 17. axb3 {[%emt 0:03:49]} Qb6 {[%emt 0:04:16]} 18. hxg6 {[%emt 0:00:11]} hxg6 {[%emt 0:02:17]} 19. Nh3 {[%emt 0:02:50]} (19. g5 Nh5 20. Rh4 Bf8) 19... Bb7 {[%emt 0:03:10] aiming for ...c5.} 20. e4 {[%emt 0:06:18]} Rad8 $2 {[%emt 0:12:46]} (20... Qa7 21. Ng5 $15) (20... d4 $17 {Hoping for ...c5.} 21. Nf2 c5) 21. Ng5 $11 {[%emt 0:03:24][%cal Of3f4]} c5 {[%emt 0:02:43][%cal Oc5c4]} 22. exd5 {[%emt 0:05:32]} Bxd5 {[%emt 0:00:13]} 23. Qc3 {[%emt 0:05:36]} (23. Bxe5 $2 Nxg4 24. Rxd5 Rxd5 $19) 23... Nxg4 {[%emt 0:07:52]} 24. Rxd5 {[%emt 0:00:18]} Rxd5 {[%emt 0:00:08]} 25. Bc4 $1 {[%emt 0:00:23] The board is on fire. A strong pair of Bishops.} (25. fxg4 $2 Rd1+ 26. Bc1 e4 $19) 25... Nf6 {[%emt 0:00:08]} 26. Bxd5 {[%emt 0:04:57]} Nxd5 {[%emt 0:00:02]} 27. Qc4 {[%emt 0:00:06]} Qc6 {[%emt 0:09:21]} 28. Rd1 {[%emt 0:01:09]} Rd8 {[%emt 0:00:16][%cal Od5c3]} 29. Rd3 $40 {[%emt 0:03:52][%mdl 128] Inhibits Nc3+. White has some attack.} (29. Qh4 $2 Nc3+ $1 {[%mdl 512]} 30. Bxc3 Rxd1+ $19) 29... Bf6 {[%emt 0:09:42]} (29... Rd7 $5 {[%cal Rd5b6]}) 30. Ne4 {[%emt 0:01:21]} Be7 {[%emt 0:00:10]} 31. Bxe5 {[%emt 0:00:41]} Rd7 {[%emt 0:02:04] [#]} (31... Kf8 $16) 32. Nd6 $1 {[%emt 0:01:20][%mdl 512]} Nc3+ $1 $14 {[%emt 0:01:13]} 33. Rxc3 {[%emt 0:02:34][%csl Gd6][%cal Rc4f7]} Bxd6 {[%emt 0:00:10]} 34. Bxd6 {[%emt 0:00:34]} Qxd6 {[%emt 0:01:15]} ({Black should play} 34... Rxd6 $14 35. Qxc5 Rd1+ 36. Kb2 Qf6) 35. Qxc5 {[%emt 0:00:11][%mdl 4096] Endgame KQR-KQR} (35. Rd3 $142 Qe7 36. Rxd7 Qxd7 37. Qxc5) 35... Qd1+ {[%emt 0:00:05]} (35... Qf6 $16) 36. Kb2 $18 {[%emt 0:00:10]} Rd8 {[%emt 0:03:12]} 37. Qc6 {[%emt 0:00:59] Against Ra8} (37. b4 $1 $18) 37... Qd4 $16 {[%emt 0:01:23]} 38. Qe4 {[%emt 0:00:38]} ({White should try} 38. Ka2 $1 $16) 38... Qf6 $11 {[%emt 0:00:44]} 39. Qc6 {[%emt 0:00:37]} Rd6 {[%emt 0:01:17]} 40. Qe8+ {[%emt 0:00:24]} Kg7 {[%emt 0:00:17]} 41. Qe3 {[%emt 0:30:55]} Ra6 {[%emt 0:04:40]} (41... Rd4 $11) 42. Qc5 {[%emt 0:00:00]} Kh7 {[%emt 0:07:29] [#]} (42... Rd6 $14) 43. b4 $1 $16 {[%emt 0:00:00]} Rb6 {[%emt 0:07:50] [#]} (43... Rd6 $16 {might work better.}) 44. Kb3 $1 $18 {[%emt 0:00:00]} Rb8 {[%emt 0:02:23]} 45. Qd5 {[%emt 0:00:00]} Qe7 $2 {[%emt 0:00:29]} (45... Rd8 46. Rc6 Qe7) 46. Qe4 {[%emt 0:00:00]} Qa7 {[%emt 0:00:54]} 47. Rd3 {[%emt 0:00:00]} ({Weaker is} 47. Qh4+ Kg8 $16) 47... Kg8 {[%emt 0:00:22]} 48. Qd4 {[%emt 0:00:00] Active counter play!} Qa6 {[%emt 0:00:47]} (48... Qe7 {is a better defense.} 49. Qe4 Qf6) 49. Qd6 {[%emt 0:00:00]} Qb7 {[%emt 0:02:22]} 50. f4 {[%emt 0:00:00] Strongly threatening c4.} Ra8 {[%emt 0:00:30]} 51. Qf6 {[%emt 0:00:00]} Qa7 $2 {[%emt 0:02:30]} (51... Qh1 52. Rd8+ Rxd8 53. Qxd8+ Kg7 54. Qd4+ Kg8) 52. Rd8+ {[%emt 0:00:00] Both players deserved the win here.  Weighted Error Value: White=0.25 (precise) /Black=0.43} 1-0